lending/lending_fUSD_20241007
["ID","MTS","AMOUNT","RATE_DAILY","PERIOD"]
[340019412,1728334255341,-174.27305927,0.00044,120]
[340019414,1728334255352,-84170.14901196,0.00044,120]
[340019416,1728334255361,-102526.16054971,0.00044,120]
[340019418,1728334255371,-1200.9008108,0.00044,120]
[340019420,1728334255390,-1017.82190941,0.00015092,2]
[340019421,1728334255399,-500.0,0.00039726,120]
[340019422,1728334255407,-75.72832356,0.00044,120]
[340019423,1728334255418,-131636.8927666,0.00044,120]
[340019424,1728334255430,-904.85065899,0.00044,120]
[340019425,1728334255440,-744.96847343,0.00044,120]
[340019426,1728334255455,-582.282162,0.00038356,7]
[340019427,1728334255464,-2369.4376295,0.00044,120]
[340019428,1728334255474,-1300.0,0.00044,120]
[340019429,1728334255485,-5169.12813013,0.00044,120]
[340019430,1728334255496,-352768.40545461,0.00044,120]
[340019431,1728334255506,-453.8784,0.00044,120]
[340019440,1728334255587,-281.326473,0.00017849,2]
[340019442,1728334255598,-9718.673527,0.00017849,2]
[340019444,1728334255607,-500.0,0.000313,9]
[340019446,1728334255615,-500.0,0.000323,9]
[340019448,1728334255624,-500.0,0.0004,120]
[340019450,1728334255633,-582.282162,0.0004,14]
[340019452,1728334255643,-500.0,0.00040273,120]
[340019454,1728334255651,-500.0,0.00040547,120]
[340019456,1728334255660,-500.0,0.00040821,120]
[340019458,1728334255669,-847.55031558,0.000409,120]
[340019459,1728334255678,-582.282162,0.00041,14]
[340019461,1728334255688,-500.0,0.00041095,120]
[340019463,1728334255697,-500.0,0.00041369,120]
[340019465,1728334255705,-582.282162,0.00042,14]
[340019467,1728334255714,-582.282162,0.000428,14]
[340019468,1728334255723,-582.282162,0.00043,14]
[340019470,1728334255732,-33075.36623417,0.00044,120]
[340019472,1728334255742,-436.78634993,0.00044,120]
[340019474,1728334255753,-6680.291501,0.00044,120]
[340019476,1728334255763,-313.60578957,0.00044,120]
[340019478,1728334255774,-7898.999995,0.00044,120]
[340019481,1728334255785,-5461.22,0.00044,120]
[340019483,1728334255795,-2156.18686136,0.00044,120]
[340019485,1728334255806,-7979.52814858,0.00044,120]
[340019487,1728334255816,-381.16870133,0.00044,120]
[340019489,1728334255827,-405.466,0.00044,120]
[340019491,1728334255837,-460.32635449,0.00044,120]
[340019494,1728334255848,-56559.62876914,0.00044,120]
[340019496,1728334255858,-3695.10176852,0.00044,120]
[340019498,1728334255873,-582.282162,0.000139,2]
[340019500,1728334255882,-777.7672404,0.00044,120]
[340019502,1728334255893,-274568.20508918,0.00044,120]
[340019504,1728334255902,-501.252194,0.00044,57]
[340019506,1728334255912,-193.727716,0.00044,14]
[340019508,1728334255921,-193.727722,0.00044,14]
[340019510,1728334255930,-6500.0,0.00044,14]
[340019512,1728334255939,-6500.0,0.00044,14]
[340019514,1728334255949,-582.282162,0.00044,14]
[340019516,1728334255958,-710.15443203,0.00044079,30]
[340019517,1728334255967,-250000.0,0.000441,120]
[340019519,1728334255976,-746.07,0.00044109,120]
[340019522,1728334255986,-524.72,0.00044109,120]
[340019524,1728334255995,-668.47,0.00044109,120]
[340019525,1728334256005,-872.94,0.00044109,120]
[340019527,1728334256014,-935.85,0.00044109,120]
[340019530,1728334256023,-641.57,0.00044109,120]
[340019532,1728334256032,-939.41,0.00044109,120]
[340019533,1728334256041,-151.100705,0.00044198,120]
[340019535,1728334256050,-746.07,0.00044383,120]
[340019537,1728334256059,-524.72,0.00044383,120]
[340019539,1728334256068,-668.47,0.00044383,120]
[340019541,1728334256078,-872.94,0.00044383,120]
[340019544,1728334256088,-935.85,0.00044383,120]
[340019546,1728334256098,-641.57,0.00044383,120]
[340019548,1728334256115,-939.41,0.00044383,120]
[340019549,1728334256124,-218.16,0.00044384,120]
[340019552,1728334256133,-157.100805,0.00044498,120]
[340019554,1728334256143,-250000.0,0.000445,120]
[340019556,1728334256153,-9220.20896741,0.000445,120]
[340019558,1728334256162,-1000000.0,0.000445,120]
[340019560,1728334256171,-562.66828581,0.00044534,120]
[340019561,1728334256180,-2000.0,0.000446,120]
[340019563,1728334256189,-485.15842821,0.00044644,61]
[340019565,1728334256199,-9263.67961257,0.0004465,60]
[340019566,1728334256208,-200.0,0.00044655,61]
[340019568,1728334256218,-746.29836241,0.00044657,120]
[340019570,1728334256226,-524.7387604,0.00044657,120]
[340019572,1728334256235,-668.63774994,0.00044657,120]
[340019574,1728334256244,-873.08341888,0.00044657,120]
[340019576,1728334256253,-936.03828991,0.00044657,120]
[340019578,1728334256262,-641.62475128,0.00044657,120]
[340019580,1728334256272,-939.61867535,0.00044657,120]
[340019582,1728334256281,-1555.55617724,0.00044658,61]
[340019593,1728334256368,-3492.42935366,0.00044676,61]
[340019595,1728334256388,-1555.55617724,0.00044681,61]
[340019597,1728334256397,-9070.57642081,0.00044683,61]
[340019599,1728334256406,-9070.57642081,0.00044687,61]
[340019601,1728334256415,-2143.02073265,0.000447,61]
[340019603,1728334256424,-200.0,0.00044713,61]
[340019605,1728334256436,-1555.55617724,0.00044727,61]
[340019607,1728334256445,-1414.31345433,0.00044729,61]
[340019609,1728334256454,-500.0,0.0004474,120]
[340019611,1728334256462,-422.65472707,0.0004474,120]
[340019613,1728334256471,-200.0,0.00044751,61]
[340019615,1728334256480,-485.15842821,0.00044764,61]
[340019617,1728334256489,-151.100705,0.00044798,120]
[340019618,1728334256499,-3492.42935366,0.00044799,61]
[340019620,1728334256508,-1008.26346002,0.000448,20]
[340019622,1728334256517,-1215.68516,0.000448,30]
[340019624,1728334256526,-6939.226466,0.000448,30]
[340019626,1728334256535,-163.098587,0.000448,30]
[340019628,1728334256545,-20970.27521644,0.000448,120]
[340019630,1728334256554,-88074.02970085,0.000448,120]
[340019632,1728334256564,-2000.0,0.000448,30]
[340019634,1728334256573,-8504.491549,0.000448,30]
[340019635,1728334256583,-1414.31345433,0.00044805,61]
[340019637,1728334256592,-485.15842821,0.00044816,61]
[340019639,1728334256601,-2143.02073265,0.00044817,61]
[340019641,1728334256610,-1414.31345433,0.00044828,61]
[340019643,1728334256619,-2143.02073265,0.00044828,61]
[340019645,1728334256628,-9070.57642081,0.00044829,61]
[340019646,1728334256637,-339.62,0.00044873,2]
[340019648,1728334256645,-3492.42935366,0.00044873,61]
[340019650,1728334256654,-1000.0,0.00044879,120]
[340019652,1728334256664,-1451.9232077,0.0004488,30]
[340019654,1728334256673,-712972.77816628,0.0004488,120]
[340019656,1728334256685,-290.67546503,0.0004488,120]
[340019658,1728334256696,-328782.70436085,0.0004488,120]
[340019660,1728334256706,-1017.6830018,0.0004488,120]
[340019662,1728334256717,-1189.88173211,0.0004488,120]
[340019664,1728334256727,-446.51173508,0.0004488,120]
[340019666,1728334256738,-600.64996105,0.0004488,120]
[340019668,1728334256749,-575.47544634,0.0004488,120]
[340019670,1728334256759,-96660.3848501,0.0004488,120]
[340019789,1728334258130,-500.02,0.0002399,3]
[340019791,1728334258140,-582.282162,0.00025,7]
[340019793,1728334258150,-582.282162,0.00032485,7]
[340019794,1728334258159,-582.282162,0.00038356,7]
[340019796,1728334258168,-677.0,0.00039999,5]
[340019798,1728334258178,-582.282162,0.0004,14]
[340019800,1728334258188,-582.282162,0.00041,14]
[340019802,1728334258197,-500.0,0.00041643,120]
[340019803,1728334258207,-415.41901558,0.00041917,120]
[340019805,1728334258216,-210535.06462988,0.0004488,120]
[340019807,1728334258224,-604.35997662,0.000449,30]
[340019809,1728334258234,-200.0,0.0004495,3]
[340019811,1728334258243,-200.0,0.00044961,3]
[340019813,1728334258252,-200.0,0.00044972,3]
[340019815,1728334258261,-1072.15797194,0.00044973,120]
[340019817,1728334258274,-200.0,0.00044983,3]
[340019819,1728334258284,-200.0,0.00044994,3]
[340019821,1728334258293,-1000.0,0.00044999,120]
[340019822,1728334258302,-50000.0,0.00045,35]
[340019824,1728334258311,-50000.0,0.00045,45]
[340019826,1728334258320,-150.0,0.00045,85]
[340019828,1728334258329,-1000000.0,0.00045,120]
[340019830,1728334258338,-1000000.0,0.00045,120]
[340019831,1728334258347,-13621.21396485,0.00045,30]
[340019833,1728334258356,-452.0,0.00045,120]
[340019835,1728334258366,-156.96549205,0.00045,120]
[340019837,1728334258375,-145000.0,0.00045,15]
[340019839,1728334258384,-2259.40115618,0.00045,14]
[340019840,1728334258393,-1000.0,0.00045,45]
[340019842,1728334258402,-15000.0,0.00045,65]
[340019844,1728334258411,-150.0,0.00045,120]
[340019846,1728334258420,-15056.05499824,0.00045,64]
[340019847,1728334258431,-309.0,0.00045,120]
[340019849,1728334258441,-202.89727177,0.00045,90]
[340019851,1728334258450,-20000.0,0.00045,120]
[340019853,1728334258459,-800.0,0.00045,120]
[340019855,1728334258468,-6011.02705501,0.00045,120]
[340019857,1728334258477,-1000.0,0.00045,120]
[340019859,1728334258486,-1000.0,0.00045,120]
[340019861,1728334258495,-1000.0,0.00045,120]
[340019863,1728334258504,-1000.0,0.00045,120]
[340019865,1728334258513,-1000.0,0.00045,120]
[340019867,1728334258522,-1000.0,0.00045,120]
[340019869,1728334258531,-1000.0,0.00045,120]
[340019870,1728334258540,-635.0,0.00045,120]
[340019872,1728334258550,-383.89924114,0.00045,120]
[340019874,1728334258558,-881.67527457,0.00045,120]
[340019876,1728334258567,-1042.34367321,0.00045,120]
[340019877,1728334258576,-507.62222364,0.00045,120]
[340019879,1728334258585,-2000.0,0.00045,2]
[340019881,1728334258594,-1000000.0,0.00045,120]
[340019883,1728334258604,-314.77086317,0.00045,30]
[340019885,1728334258613,-180.82394442,0.00045,120]
[340019887,1728334258622,-20000.0,0.00045,120]
[340019889,1728334258631,-6479.0,0.00045,120]
[340019891,1728334258640,-315.81,0.00045,120]
[340019901,1728334258739,-1100.0,0.00045,2]
[340019903,1728334258749,-331.29,0.00045,120]
[340019905,1728334258758,-642.29,0.00045,120]
[340019907,1728334258767,-157.100805,0.00045198,120]
[340019909,1728334258776,-152.0,0.00045284,5]
[340019911,1728334258785,-500.0,0.00045288,120]
[340019913,1728334258794,-668.66,0.00045342,120]
[340019915,1728334258803,-1684.72,0.00045342,120]
[340019917,1728334258812,-151.100705,0.00045498,120]
[340019919,1728334258821,-250000.0,0.000455,120]
[340019921,1728334258830,-1054944.28,0.000456,7]
[340019923,1728334258839,-286517.2,0.000456,7]
[340019924,1728334258848,-12146.61,0.000456,7]
[340019926,1728334258857,-67012.14,0.000456,7]
[340019928,1728334258866,-31883.72,0.000456,7]
[340019930,1728334258876,-34472.91,0.000456,7]
[340019932,1728334258885,-11333.23,0.000456,7]
[340019934,1728334258894,-26675.42,0.000456,7]
[340019936,1728334258904,-24777.8,0.000456,7]
[340019938,1728334258913,-57472.1,0.000456,7]
[340019940,1728334258922,-5711.06,0.000456,7]
[340019942,1728334258931,-27986.79,0.000456,7]
[340019944,1728334258940,-323.34560893,0.000456,120]
[340019946,1728334258949,-668.66,0.00045753,120]
[340019948,1728334258958,-1684.72,0.00045753,120]
[340019950,1728334258967,-157.100805,0.00045798,120]
[340019951,1728334258976,-1788.987,0.000458,60]
[340019953,1728334258985,-500.0,0.00045836,120]
[340019955,1728334258994,-250000.0,0.000459,120]
[340019957,1728334259004,-1000.0,0.00045999,120]
[340019959,1728334259012,-50000.0,0.00046,36]
[340019961,1728334259021,-50000.0,0.00046,46]
[340019963,1728334259031,-1000.0,0.00046,30]
[340019965,1728334259040,-1000.0,0.00046,120]
[340019966,1728334259048,-1000000.0,0.00046,120]
[340019967,1728334259058,-373.41663816,0.00046,120]
[340019968,1728334259067,-800.38462778,0.00046,120]
[340019969,1728334259076,-150.0,0.00046,120]
[340019970,1728334259084,-417.48646176,0.00046,30]
[340019971,1728334259093,-1000000.0,0.00046,120]
[340019972,1728334259106,-20000.0,0.00046,120]
[340019973,1728334259115,-252.7994,0.00046,30]
[340019974,1728334259125,-9263.67961257,0.0004615,60]
[340019975,1728334259134,-668.66,0.00046164,120]
[340019976,1728334259143,-1684.72,0.00046164,120]
[340019977,1728334259152,-151.100705,0.00046198,120]
[340019978,1728334259161,-23559.48,0.000462,7]
[340019979,1728334259170,-565.03678058,0.000463,120]
[340019981,1728334259179,-500.0,0.00046384,120]
[340019983,1728334259189,-250000.0,0.000464,120]
[340019985,1728334259198,-157.100805,0.00046498,120]
[340019987,1728334259208,-223.13802708,0.000465,120]
[340019989,1728334259217,-150.0,0.000465,20]
[340019991,1728334259226,-380.43294327,0.00046542,120]
[340019993,1728334259235,-320.104724,0.00046558,120]
[340019995,1728334259244,-668.66,0.00046575,120]
[340019997,1728334259253,-1684.72,0.00046575,120]
[340019999,1728334259263,-2000.0,0.00046575,14]
[340020001,1728334259271,-500.0,0.00046575,30]
[340020003,1728334259280,-3000.0,0.000466,2]
[340020005,1728334259290,-151.100705,0.00046798,120]
[340020007,1728334259298,-150.0,0.00046869,120]
[340020009,1728334259307,-185.05534953,0.00046899,120]
[340020011,1728334259317,-250000.0,0.000469,120]
[340020013,1728334259326,-379.8051847,0.00046932,120]
[340020015,1728334259334,-162.6,0.00046967,2]
[340020017,1728334259343,-668.66,0.00046986,120]
[340020019,1728334259352,-1684.72,0.00046986,120]
[340020021,1728334259361,-411.0,0.00046986,90]
[340020023,1728334259370,-1000.0,0.00046999,120]
[340020025,1728334259379,-50000.0,0.00047,37]
[340020028,1728334259389,-50000.0,0.00047,47]
[340020030,1728334259398,-917.2901545,0.00047,60]
[340020031,1728334259407,-1000000.0,0.00047,120]
[340020033,1728334259416,-2180.0,0.00047,120]
[340020036,1728334259425,-150.0,0.00047,120]
[340020037,1728334259434,-20000.0,0.00047,120]
[340020039,1728334259443,-1150.0,0.00047,2]
[340020041,1728334259452,-339.62,0.00047137,2]
[340020043,1728334259461,-157.100805,0.00047198,120]
[340020045,1728334259470,-415.354,0.00047382,80]
[340020047,1728334259479,-668.66,0.00047397,120]
[340020050,1728334259488,-1684.72,0.00047397,120]
[340020052,1728334259497,-151.100705,0.00047498,120]
[340020053,1728334259507,-250000.0,0.000475,120]
[340020055,1728334259516,-5159.8380062,0.000476,2]
[340020057,1728334259525,-9263.67961257,0.0004765,60]
[340020059,1728334259534,-432.0,0.000477,120]
[340020061,1728334259543,-157.100805,0.00047798,120]
[340020064,1728334259553,-250000.0,0.000478,120]
[340020065,1728334259562,-668.74,0.00047808,120]
[340020067,1728334259571,-1684.73131733,0.00047808,120]
[340020069,1728334259580,-2561.67408795,0.00047879,7]
[340020071,1728334259589,-18593.0,0.0004793,120]
[340020073,1728334259598,-411.0,0.00047986,90]
[340020075,1728334259607,-1000.0,0.00047999,120]
[340020077,1728334259618,-50000.0,0.00048,38]
[340020079,1728334259626,-50000.0,0.00048,48]
[340020081,1728334259636,-305.42420865,0.00048,120]
[340020083,1728334259644,-748.51447718,0.00048,120]
[340020085,1728334259654,-1000.0,0.00048,120]
[340020087,1728334259663,-10000.0,0.00048,30]
[340020089,1728334259672,-150.0,0.00048,90]
[340020091,1728334259681,-1300.0,0.00048,120]
[340020093,1728334259690,-945.6562251,0.00048,120]
[340020095,1728334259700,-1000000.0,0.00048,120]
[340020097,1728334259709,-39000.0,0.00048,120]
[340020099,1728334259720,-150.0,0.00048,120]
[340020101,1728334259729,-161.76901417,0.00048,120]
[340020103,1728334259738,-1000.0,0.00048,120]
[340020105,1728334259747,-10071.0,0.00048,120]
[340020107,1728334259757,-20000.0,0.00048,120]
[340020109,1728334259766,-372.72778566,0.00048,120]
[340020111,1728334259776,-431.19,0.00048,30]
[340020113,1728334259786,-250.0,0.00048,30]
[340020115,1728334259795,-151.100715,0.00048198,120]
[340020117,1728334259804,-181136.71211571,0.000482,120]
[340020119,1728334259813,-6083.64015259,0.0004829,120]
[340020121,1728334259823,-5000.0,0.0004832,7]
[340020123,1728334259832,-22941.0,0.0004833,120]
[340020125,1728334259841,-50000.0,0.0004845,120]
[340020127,1728334259850,-411.0,0.00048486,120]
[340020129,1728334259860,-151.100715,0.00048498,120]
[340020130,1728334259869,-58669.61168562,0.000485,120]
[340020132,1728334259878,-858.0,0.00048666,120]
[340020134,1728334259888,-54378.0,0.0004867,120]
[340020136,1728334259897,-882.58,0.0004867,120]
[340020138,1728334259906,-15000.0,0.000487,120]
[340020140,1728334259916,-679.9508049,0.000488,120]
[340020142,1728334259926,-1566.88,0.000488,90]
[340020144,1728334259938,-456.52582973,0.000488,120]
[340020146,1728334259948,-205.28633676,0.000488,120]
[340020148,1728334259957,-806.57492866,0.0004888,120]
[340020150,1728334259969,-1050.0,0.000489,60]
[340020152,1728334259978,-150.0,0.000489,30]
[340020154,1728334259987,-3142.13,0.000489,120]
[340020156,1728334259998,-109889.87573406,0.000489,120]
[340020158,1728334260007,-15087.54386329,0.000489,120]
[340020160,1728334260017,-23745.0,0.000489,120]
[340020162,1728334260026,-200.0,0.00048999,120]
[340020164,1728334260036,-1000.0,0.00048999,120]
[340020166,1728334260045,-2004.0,0.00048999,90]
[340020168,1728334260056,-2449.0,0.00048999,90]
[340020170,1728334260066,-50000.0,0.00049,49]
[340020172,1728334260076,-50000.0,0.00049,39]
[340020173,1728334260086,-21532.48821174,0.00049,2]
[340020175,1728334260095,-735.22930857,0.00049,30]
[340020178,1728334260106,-1000000.0,0.00049,120]
[340020179,1728334260116,-150.0,0.00049,120]
[340020181,1728334260126,-50354.50903669,0.00049,120]
[340020183,1728334260135,-409.0,0.00049,120]
[340020185,1728334260146,-658.698977,0.00049,50]
[340020187,1728334260155,-1000000.0,0.00049,120]
[340020189,1728334260165,-20000.0,0.00049,120]
[340020191,1728334260174,-1200.0,0.00049,2]
[340020193,1728334260185,-9263.67961257,0.0004915,60]
[340020194,1728334260195,-220.577,0.0004925,120]
[340020196,1728334260204,-220.577,0.0004925,120]
[340020198,1728334260214,-220.577,0.0004925,120]
[340020200,1728334260224,-220.577,0.0004925,120]
[340020202,1728334260233,-220.577,0.0004925,120]
[340020204,1728334260243,-3000.0,0.000493,2]
[340020206,1728334260253,-2250.0,0.00049315,14]
[340020208,1728334260262,-334.8,0.00049315,120]
[340020210,1728334260271,-278.26640643,0.000494,120]
[340020212,1728334260281,-339.62,0.00049401,2]
[340020214,1728334260290,-217012.0,0.0004944,30]
[340020216,1728334260300,-75000.0,0.0004949,120]
[340020218,1728334260309,-203.86260766,0.000495,120]
[340020220,1728334260318,-2436.562616,0.00049563,120]
[340020222,1728334260328,-1263674.05946727,0.000498,120]
[340020224,1728334260337,-197.77614715,0.000498,30]
[340020226,1728334260346,-1002899.5820656,0.000498,120]
[340020227,1728334260356,-150.0,0.0004981,30]
[340020229,1728334260365,-95271.9817226,0.0004988,120]
[340020231,1728334260374,-655.07064014,0.000499,120]
[340020233,1728334260383,-1000.0,0.00049999,120]
[340020235,1728334260393,-50000.0,0.0005,50]
[340020237,1728334260402,-50000.0,0.0005,60]
[340020239,1728334260411,-30000.01,0.0005,120]
[340020241,1728334260420,-3395.55509491,0.0005,120]
[340020243,1728334260431,-4152.1303,0.0005,120]
[340020245,1728334260440,-479.04022747,0.0005,120]
[340020247,1728334260450,-1199999.999999,0.0005,120]
[340020249,1728334260459,-150.0,0.0005,120]
[340020251,1728334260468,-1000.0,0.0005,120]
[340020253,1728334260477,-2388.88807674,0.0005,60]
[340020254,1728334260485,-1003.818,0.0005,120]
[340020256,1728334260494,-314.74102726,0.0005,120]
[340020258,1728334260503,-38000.0,0.0005,120]
[340020260,1728334260513,-5000.0,0.0005,120]
[340020262,1728334260522,-1124.27197651,0.0005,2]
[340020264,1728334260531,-300.0,0.0005,120]
[340020266,1728334260541,-1000000.0,0.0005,120]
[340020267,1728334260550,-5000.0,0.0005,120]
[340020269,1728334260559,-4191.97010012,0.0005,120]
[340020271,1728334260568,-2000.0,0.0005,30]
[340020273,1728334260577,-500.0,0.0005,12]
[340020275,1728334260586,-23429.29443725,0.0005,120]
[340020276,1728334260595,-20000.0,0.0005,120]
[340020277,1728334260604,-603000.0,0.0005,120]
[340020278,1728334260613,-431.19,0.0005,30]
[340020279,1728334260622,-22488.0,0.0005,15]
[340020280,1728334260631,-250.0,0.0005,30]
[340020281,1728334260640,-157.27,0.00050342,2]
[340020282,1728334260649,-155.89,0.00050342,2]
[340020283,1728334260659,-152.0,0.000504,6]
[340020284,1728334260668,-154.87029901,0.000504,5]
[340020285,1728334260677,-9263.67961257,0.0005065,60]
[340020287,1728334260687,-1000.0,0.00050999,120]
[340020298,1728334260695,-20000.0,0.00051,120]
[340020300,1728334260798,-150.0,0.00051,15]
[340020302,1728334260808,-150.0,0.00051,120]
[340020304,1728334260817,-60000.0,0.00051,120]
[340020306,1728334260826,-10000.0,0.0005144,30]
[340020308,1728334260835,-493.35965587,0.000515,2]
[340020309,1728334260844,-158.9,0.00051595,120]
[340020311,1728334260853,-339.62,0.00051665,2]
[340020313,1728334260862,-13169.36304183,0.0005182,120]
[340020315,1728334260872,-150.0,0.0005193,40]
[340020317,1728334260882,-39999.99999901,0.0005198,120]
[340020319,1728334260891,-150.0,0.00052,120]
[340020321,1728334260901,-1000.0,0.00052,120]
[340020323,1728334260911,-5500.0,0.00052,120]
[340020324,1728334260920,-40695.0,0.00052,120]
[340020326,1728334260929,-10594.0,0.00052,30]
[340020328,1728334260939,-700.0,0.00052,120]
[340020330,1728334260947,-103219.06676435,0.00052,120]
[340020332,1728334260958,-151.0,0.00052,120]
[340020334,1728334260967,-151.0,0.00052,120]
[340020336,1728334260976,-701.26952927,0.00052,120]
[340020338,1728334260986,-20000.0,0.00052,120]
[340020339,1728334260995,-2500.0,0.00052054,14]
[340020341,1728334261005,-3000.0,0.000521,2]
[340020343,1728334261014,-9263.67961257,0.0005215,60]
[340020345,1728334261024,-1000.0,0.000522,120]
[340020347,1728334261033,-151.0,0.00052575,120]
[340020349,1728334261043,-226.92476301,0.000528,120]
[340020351,1728334261052,-1000.0,0.00052999,120]
[340020353,1728334261061,-570.22499344,0.00053,2]
[340020355,1728334261071,-200.0,0.00053,120]
[340020357,1728334261080,-150.0,0.00053,120]
[340020359,1728334261091,-500.0,0.00053,6]
[340020360,1728334261101,-425000.0,0.00053,120]
[340020362,1728334261113,-20000.0,0.00053,120]
[340020364,1728334261122,-151.0,0.00053151,120]
[340020366,1728334261132,-15654.78752826,0.000532,120]
[340020368,1728334261142,-442.12500086,0.0005331,2]
[340020370,1728334261151,-2068.0,0.000534,120]
[340020372,1728334261161,-9263.67961257,0.0005365,60]
[340020374,1728334261170,-151.0,0.00053726,120]
[340020376,1728334261179,-2175.24024878,0.00054,120]
[340020378,1728334261190,-150.0,0.00054,120]
[340020379,1728334261200,-1000.0,0.00054,120]
[340020381,1728334261209,-410.38305946,0.00054,120]
[340020383,1728334261219,-17821.18838687,0.00054,120]
[340020385,1728334261228,-43758.74387401,0.00054,120]
[340020387,1728334261238,-700.0,0.00054,120]
[340020389,1728334261248,-20000.0,0.00054,120]
[340020391,1728334261258,-24999.999997,0.00054,120]
[340020393,1728334261267,-151.0,0.00054301,120]
[340020395,1728334261276,-212.4259971,0.000546,7]
[340020397,1728334261286,-14386.16549848,0.000547,120]
[340020399,1728334261295,-71278.85269585,0.000547,120]
[340020401,1728334261305,-151.0,0.00054712,120]
[340020403,1728334261314,-1086.11823991,0.00054794,120]
[340020405,1728334261323,-2750.0,0.00054794,14]
[340020407,1728334261332,-500.0,0.00054794,120]
[340020409,1728334261342,-500.0,0.00054794,120]
[340020411,1728334261351,-500.0,0.00054794,120]
[340020413,1728334261360,-500.0,0.00054794,120]
[340020415,1728334261370,-500.0,0.00054794,120]
[340020417,1728334261379,-500.0,0.00054794,120]
[340020419,1728334261388,-500.0,0.00054794,120]
[340020420,1728334261397,-500.0,0.00054794,120]
[340020422,1728334261406,-500.0,0.00054794,120]
[340020423,1728334261415,-500.0,0.00054794,120]
[340020424,1728334261424,-437.60380152,0.00054794,120]
[340020426,1728334261433,-864.0,0.00054795,120]
[340020427,1728334261442,-500.0,0.00054795,120]
[340020429,1728334261451,-766.0,0.00054795,120]
[340020430,1728334261461,-760.0,0.00054795,120]
[340020432,1728334261470,-788.0,0.00054795,120]
[340020433,1728334261480,-512.0,0.00054795,120]
[340020435,1728334261489,-3000.0,0.000548,2]
[340020436,1728334261499,-20000.0,0.0005487,30]
[340020438,1728334261508,-151.0,0.00054877,120]
[340020439,1728334261518,-10000.0,0.0005489,30]
[340020441,1728334261527,-12500.29489859,0.00055,5]
[340020442,1728334261536,-208.2274428,0.00055,120]
[340020444,1728334261546,-150.22726288,0.00055,120]
[340020445,1728334261556,-150.0,0.00055,120]
[340020447,1728334261565,-150.0,0.00055,40]
[340020448,1728334261574,-50491.74372991,0.00055,30]
[340020450,1728334261583,-10000.0,0.00055,30]
[340020451,1728334261593,-83590.0,0.00055,15]
[340020453,1728334261602,-3327.66036017,0.00055,120]
[340020455,1728334261612,-3600.0,0.00055,120]
[340020456,1728334261621,-20000.0,0.00055,120]
[340020458,1728334261630,-250.626097,0.00055,100]
[340020459,1728334261639,-9263.67861257,0.0005515,120]
[340020461,1728334261649,-151.0,0.00055452,120]
[340020462,1728334261659,-218.16,0.00055616,120]
[340020464,1728334261670,-580.0,0.00056,14]
[340020466,1728334261683,-151596.94864594,0.00056,10]
[340020467,1728334261696,-118451.39792648,0.00056,10]
[340020469,1728334261706,-105349.06166798,0.00056,10]
[340020470,1728334261715,-1127532.44615371,0.00056,10]
[340020472,1728334261725,-500.0,0.00056,120]
[340020474,1728334261738,-200.03,0.00056,120]
[340020476,1728334261751,-343115.37926212,0.00056,120]
[340020478,1728334261766,-456.1298,0.00056,90]
[340020479,1728334261780,-20000.0,0.00056,120]
[340020481,1728334261793,-151.0,0.00056027,120]